bitfinex/quotes_ETHUSD_20241018
["timestamp","ask_amount","ask_price","bid_price","bid_amount"]
[1729282896957,4.2477986,2643.7,2643.6,0.34924242]
[1729282897108,2.67481912,2643.7,2643.6,0.34924242]
[1729282897310,2.0342334,2643.7,2643.6,0.34924242]
[1729282897540,1.76199001,2643.7,2643.6,0.34924242]
[1729282897752,2.93531133,2643.7,2643.6,0.34924242]
[1729282897921,3.22469415,2643.7,2643.6,0.34924242]
[1729282898252,2.66306529,2643.7,2643.6,0.34924242]
[1729282898553,5.19057572,2643.7,2643.6,0.34924242]
[1729282901449,5.19057697,2643.7,2643.6,0.34924242]
[1729282901654,5.19039643,2643.7,2643.6,0.34924242]
[1729282901820,3.22460498,2643.7,2643.6,0.34924242]
[1729282902213,5.58355472,2643.7,2643.6,0.34924242]
[1729282902616,3.22460498,2643.7,2643.6,0.34924242]
[1729282903123,5.58355472,2643.7,2643.6,0.34924242]
[1729282904961,3.22460498,2643.7,2643.6,0.34924242]
[1729282905167,2.31199001,2643.7,2643.6,0.34924242]
[1729282905499,1.92390177,2643.7,2643.6,0.34924242]
[1729282905653,5.58300738,2643.7,2643.6,0.34924242]
[1729282906251,5.5830086,2643.7,2643.6,0.34924242]
[1729282908955,5.6479375,2643.7,2643.6,0.34924242]
[1729282909152,0.55,2643.5,2643.0,0.02265947]
[1729282909360,3.78281,2643.6,2642.4,0.7707]
[1729282909361,0.55,2643.0,2642.4,0.7707]
[1729282909702,0.7853902,2642.8,2642.4,0.7707]
[1729282910000,0.04928039,2642.7,2642.4,0.7707]
[1729282910506,0.7853902,2642.8,2642.4,0.7707]
[1729282911106,0.04920878,2642.7,2642.4,0.7707]
[1729282911406,0.7853902,2642.8,2642.4,0.7707]
[1729282911708,0.04915319,2642.6,2642.4,0.7707]
[1729282911999,0.0490976,2642.5,2642.4,0.7707]
[1729282912409,0.29057711,2642.8,2642.4,0.7707]
[1729282912625,0.0490976,2642.5,2642.4,0.7707]
[1729282912929,0.7853902,2643.0,2642.4,0.7707]
[1729282913074,0.04898355,2642.5,2642.4,0.7707]
[1729282913278,0.7853902,2643.1,2642.4,0.7707]
[1729282913532,0.04898355,2642.5,2642.4,0.7707]
[1729282913732,0.7853902,2643.1,2642.4,1.16276]
[1729282913885,0.7853902,2643.1,2642.4,0.7707]
[1729282913886,0.04898355,2642.5,2642.4,0.7707]
[1729282914376,0.7853902,2643.2,2642.4,0.7707]
[1729282914823,0.04937011,2643.1,2642.4,0.7707]
[1729282918087,0.55,2643.2,2642.4,0.7707]
[1729282918283,0.04934371,2643.0,2642.4,0.7707]
[1729282918514,0.04939928,2643.1,2642.4,0.7707]
[1729282918717,0.04928813,2642.9,2642.4,0.7707]
[1729282919231,0.04923255,2642.8,2642.4,0.7707]
[1729282919581,0.7853902,2643.3,2642.4,0.7707]
[1729282919781,0.04945485,2643.2,2642.4,0.7707]
[1729282920518,0.04945485,2643.2,2642.5,3.0]
[1729282920724,0.04945485,2643.2,2642.6,0.7765]
[1729282920982,0.0494205,2643.1,2642.7,0.7765]
[1729282921214,0.7853902,2643.5,2642.7,0.7765]
[1729282921422,0.04936492,2643.0,2642.9,0.7765]
[1729282921588,0.7853902,2643.5,2642.9,0.7765]
[1729282921800,7.5221,2643.6,2642.9,0.7765]
[1729282921801,0.04958719,2643.4,2642.9,0.7765]
[1729282922193,8.3074902,2643.6,2642.9,0.7765]
[1729282922405,0.04964275,2643.5,2642.9,0.7765]
[1729282922842,0.83503295,2643.5,2642.9,0.7765]
[1729282923129,0.20652183,2643.4,2642.9,0.7765]
[1729282923431,0.04953163,2643.3,2642.9,0.7765]
[1729282924595,0.7853902,2643.6,2642.9,0.7765]
[1729282924794,0.04964275,2643.5,2642.9,0.7765]
[1729282926633,0.7853902,2643.6,2642.9,0.7765]
[1729282926938,0.04970119,2643.4,2642.9,0.7765]
[1729282927149,0.04975675,2643.5,2642.9,0.7765]
[1729282927440,0.04970119,2643.4,2642.9,0.7765]
[1729282927933,0.27670153,2643.6,2642.9,0.7765]
[1729282928133,0.04964563,2643.3,2642.9,0.7765]
[1729282928296,0.27670153,2643.6,2642.9,0.7765]
[1729282928488,0.04959007,2643.2,2642.9,0.7765]
[1729282928695,0.27670153,2643.6,2642.9,0.7765]
[1729282928892,0.0495345,2643.1,2642.9,0.7765]
[1729282929093,1.14436896,2643.7,2642.9,0.7765]
[1729282929293,0.04947892,2643.0,2642.9,0.7765]
[1729282929539,1.14436896,2643.7,2642.9,0.7765]
[1729282930051,0.0482505,2643.6,2642.9,0.7765]
[1729282931399,0.8336407,2643.6,2642.9,0.7765]
[1729282932690,0.0482505,2643.6,2642.9,0.7765]
[1729282933445,0.04824798,2643.5,2642.9,0.7765]
[1729282933799,0.7853902,2643.8,2642.9,0.7765]
[1729282934004,0.04835908,2643.7,2642.9,0.7765]
[1729282935542,0.83374928,2643.7,2642.9,0.7765]
[1729282935743,0.20118346,2643.6,2642.9,0.7765]
[1729282935948,0.83374928,2643.7,2642.9,0.7765]
[1729282936133,0.04828244,2643.5,2642.9,0.7765]
[1729282936337,0.04833799,2643.6,2642.9,0.7765]
[1729282936515,0.04822688,2643.4,2642.9,0.7765]
[1729282936843,0.04817132,2643.3,2642.9,0.7765]
[1729282937208,0.7853902,2643.6,2642.9,0.7765]
[1729282937409,1.03002019,2643.5,2642.9,0.7765]
[1729282938628,0.7853902,2643.4,2642.9,0.7765]
[1729282939025,0.04817132,2643.3,2642.9,0.7765]
[1729282939717,0.7853902,2643.5,2642.9,0.7765]
[1729282939950,0.04651005,2643.2,2642.9,0.7765]
[1729282940165,0.7853902,2643.5,2642.9,0.7765]
[1729282940372,0.04645448,2643.1,2642.9,0.7765]
[1729282940677,0.0463989,2643.0,2642.9,0.7765]
[1729282940881,0.7853902,2643.4,2642.9,0.7765]
[1729282941172,0.04485227,2643.0,2642.9,0.7765]
[1729282941478,0.7853902,2643.4,2642.9,0.7765]
[1729282941787,0.0433572,2643.0,2642.9,0.7765]
[1729282941933,0.7853902,2643.4,2642.9,0.7765]
[1729282942437,0.04333088,2643.3,2642.9,0.7765]
[1729282945373,0.7853902,2643.5,2642.9,0.7765]
[1729282945783,0.04338644,2643.4,2642.9,0.7765]
[1729282947181,0.20774449,2643.5,2642.9,0.7765]
[1729282947484,0.04198795,2643.4,2642.9,0.7765]
[1729282947642,0.04198795,2643.4,2642.6,1.0030418]
[1729282947643,0.04198795,2643.4,2643.3,0.7576]
[1729282947976,1.1780853,2644.0,2643.3,0.7576]
[1729282948180,0.04043239,2643.4,2643.3,0.7576]
[1729282948344,1.1780853,2644.1,2643.3,0.7576]
[1729282948797,0.04076567,2644.0,2643.3,0.7576]
[1729282951170,1.1780853,2644.2,2643.3,0.7576]
[1729282951815,0.0408212,2644.1,2643.3,0.7576]
[1729282957186,0.82726597,2644.1,2643.3,0.7576]
[1729282958601,0.78644477,2644.0,2643.3,0.7576]
[1729282958974,0.04071013,2643.9,2643.3,0.7576]
[1729282959506,0.02632483,2643.9,2643.3,0.7576]
[1729282959690,0.02591168,2643.9,2643.3,0.7576]
[1729282959873,0.03486253,2643.9,2643.6,3.0]
[1729282960079,0.03714914,2643.9,2643.8,0.8122]
[1729282960410,0.03195284,2643.9,2643.8,0.8122]
[1729282960774,0.78644477,2644.2,2643.8,0.8122]
[1729282961292,0.0386807,2644.1,2643.8,0.8122]
[1729282961529,0.82512547,2644.1,2643.8,0.8122]
[1729282964503,0.0386807,2644.1,2643.8,0.8122]
[1729282970041,0.82512547,2644.1,2643.8,0.8122]
[1729282970206,0.82512547,2644.1,2643.1,0.28249296]
[1729282970207,1.03065655,2644.1,2643.2,0.8104]
[1729282970408,0.78644477,2643.9,2643.2,0.8104]
[1729282970821,0.82498271,2643.8,2643.2,0.8104]
[1729282971022,0.03853794,2643.8,2643.2,0.8104]
[1729282971413,0.82498271,2643.8,2643.2,0.8104]
[1729282971917,0.03853794,2643.8,2643.2,0.8104]
[1729282972238,0.78644477,2643.5,2643.2,0.8104]
[1729282972440,0.03831572,2643.4,2643.2,0.8104]
[1729282972641,0.03831572,2643.4,2642.6,0.28265172]
[1729282972944,0.03831572,2643.4,2642.7,0.7739]
[1729282973237,0.82476049,2643.4,2642.7,0.7739]
[1729282973398,0.03831572,2643.4,2642.7,0.7739]
[1729282975125,0.82476049,2643.4,2642.7,0.7739]
[1729282975332,0.03831572,2643.4,2642.7,0.7739]
[1729282976138,0.78644477,2643.5,2642.8,0.776]
[1729282976337,0.03813827,2643.3,2642.8,0.776]
[1729282976551,0.03819383,2643.4,2642.8,0.776]
[1729282976714,0.0380827,2643.2,2642.8,0.776]
[1729282976922,0.03813827,2643.3,2642.8,0.776]
[1729282977103,0.03802713,2643.1,2642.8,0.776]
[1729282977512,0.78644477,2643.5,2642.8,0.776]
[1729282977755,0.03797156,2643.0,2642.8,0.776]
[1729282977907,0.78644477,2643.5,2642.8,0.776]
[1729282978107,0.03791598,2642.9,2642.8,0.776]
[1729282978323,0.78644477,2643.5,2642.8,0.776]
[1729282978641,0.03791598,2642.9,2642.8,0.776]
[1729282978842,0.78644477,2643.5,2642.8,0.776]
[1729282979543,0.03819383,2643.4,2642.8,0.776]
[1729282981538,0.78644477,2643.7,2642.9,0.28266614]
[1729282981711,0.78644477,2643.7,2643.0,0.7764]
[1729282981712,0.0367791,2643.3,2643.0,0.7764]
[1729282981914,0.78644477,2643.7,2643.0,0.7764]
[1729282982115,0.03672353,2643.2,2643.0,0.7764]
[1729282982317,0.78644477,2643.8,2643.1,0.7764]
[1729282984468,0.78644477,2643.7,2643.1,0.7764]
[1729282984942,0.03694577,2643.6,2643.1,0.7764]
[1729282985287,0.78644477,2643.8,2643.1,1.0591272]
[1729282985570,0.03689022,2643.5,2643.2,0.7764]
[1729282985731,0.78644477,2643.7,2643.2,0.7764]
[1729282985925,0.03691429,2643.4,2643.2,0.7764]
[1729282986130,0.78644477,2643.7,2643.2,0.7764]
[1729282986330,0.03685873,2643.3,2643.2,0.7764]
[1729282986531,0.78644477,2643.7,2643.2,0.7764]
[1729282986756,0.03685873,2643.3,2643.2,0.7764]
[1729282986959,0.78644477,2643.7,2643.2,0.7764]
[1729282987467,0.0370254,2643.6,2643.2,0.7764]
[1729282990246,0.82347017,2643.6,2643.2,0.7764]
[1729282993042,1.13818355,2643.5,2643.2,0.7764]
[1729282993244,0.78644477,2643.5,2643.2,0.7764]
[1729282993576,0.03691429,2643.4,2643.2,0.7764]
[1729282997107,0.03691429,2643.4,2643.3,0.28293411]
[1729282997309,0.78644477,2643.9,2643.4,0.8048]
[1729282997510,0.78644477,2643.9,2643.4,1.08773411]
[1729282997711,0.78644477,2644.0,2643.5,0.28293411]
[1729282998363,0.78644477,2644.0,2643.5,1.03983411]
[1729282998570,0.78644477,2644.0,2643.5,0.7569]
[1729282999170,0.78644477,2644.1,2643.5,0.7569]
[1729282999770,0.78644477,2644.1,2643.6,0.28293411]
[1729282999970,0.03614492,2644.0,2643.6,0.28293411]
[1729283000793,0.03614492,2644.0,2643.5,0.7569]
[1729283001129,0.87468969,2644.0,2643.5,0.7569]
[1729283001619,0.78644477,2643.9,2643.5,0.7569]
[1729283001821,0.87468969,2644.0,2643.5,0.7569]
[1729283002023,0.03603385,2643.8,2643.5,0.7569]
[1729283002322,0.03608939,2643.9,2643.5,0.7569]
[1729283002523,0.0359783,2643.7,2643.5,0.7569]
[1729283002679,0.78644477,2643.9,2643.5,0.7569]
[1729283002920,0.03603385,2643.8,2643.5,0.7569]
[1729283003870,0.78644477,2643.9,2643.5,0.7569]
[1729283004376,0.036071,2643.8,2643.5,0.7569]
[1729283005169,0.78644477,2643.9,2643.5,0.7569]
[1729283005341,0.03601546,2643.7,2643.5,0.7569]
[1729283005527,0.83854477,2644.0,2643.5,0.7569]
[1729283005727,0.03595991,2643.6,2643.5,0.7569]
[1729283005969,0.83854477,2644.0,2643.5,0.7569]
[1729283006169,0.03567991,2643.6,2643.5,0.7569]
[1729283006329,0.83854477,2644.0,2643.5,0.7569]
[1729283006524,0.03567991,2643.6,2643.5,0.7569]
[1729283006742,0.83854477,2644.0,2643.5,0.7569]
[1729283006955,0.03567991,2643.6,2643.5,0.7569]
[1729283007154,0.83854477,2644.0,2643.5,0.7569]
[1729283007870,0.03584654,2643.9,2643.5,0.7569]
[1729283015352,0.03584654,2643.9,2643.5,1.03971329]
[1729283015694,0.03584654,2643.9,2643.5,0.7569]
[1729283016952,0.03584654,2643.9,2643.5,1.03971329]
[1729283017155,0.03584654,2643.9,2643.5,0.7569]
[1729283018399,0.03584654,2643.9,2643.5,1.03971329]
[1729283018560,0.03584654,2643.9,2643.5,0.7569]
[1729283019996,0.03584654,2643.9,2643.5,1.03971329]
[1729283020199,0.03584654,2643.9,2643.5,0.7569]
[1729283021490,1.2301853,2643.6,2642.9,0.28281329]
[1729283021690,0.83975319,2643.2,2642.8,0.28281329]
[1729283021895,0.0344921,2643.1,2642.8,0.28281329]
[1729283022119,0.0344921,2643.1,2642.7,0.7791]
[1729283022612,0.82214529,2643.1,2642.7,0.7791]
[1729283023308,0.0344921,2643.1,2642.7,0.7791]
[1729283027491,0.0521,2643.0,2642.3,1.03541612]
[1729283027669,0.03423228,2642.9,2642.3,0.7524]
[1729283028102,0.04637647,2642.9,2642.5,0.7524]
[1729283028302,0.78765319,2643.5,2642.6,0.75227087]
[1729283028518,0.78765319,2643.7,2642.8,0.7524]
[1729283028719,1.18147979,2643.8,2643.0,0.7524]
[1729283028720,0.07099375,2643.4,2643.0,0.7524]
[1729283029019,0.78765319,2643.8,2643.1,0.7524]
[1729283029170,0.07087469,2643.3,2643.1,0.7524]
[1729283029371,0.78765319,2643.8,2643.1,0.7524]
[1729283029621,0.07075562,2643.2,2643.1,0.7524]
[1729283029909,0.78765319,2643.8,2643.1,0.7524]
[1729283030421,0.07135088,2643.7,2643.1,0.7524]
[1729283031017,0.78765319,2643.9,2643.1,0.7524]
[1729283031502,0.85912309,2643.8,2643.1,0.7524]
[1729283033478,0.85912309,2643.8,2643.6,3.0]
[1729283033716,0.85912309,2643.8,2643.1,0.7524]
[1729283034259,0.0521,2643.7,2643.1,1.15590756]
[1729283034590,0.07151634,2643.6,2643.1,1.15590756]
[1729283037492,0.07151634,2643.6,2643.1,0.7524]
[1729283040518,0.85916953,2643.6,2643.1,0.7524]
[1729283042357,0.85916953,2643.6,2642.7,0.28269982]
[1729283042511,0.85916953,2643.6,2642.8,1.10139982]
[1729283042854,0.83975319,2643.5,2642.8,0.8187]
[1729283043210,0.08298538,2643.4,2642.8,0.8187]
[1729283043456,0.87063857,2643.4,2642.8,0.8187]
[1729283043765,0.0521,2643.3,2642.6,1.09459982]
[1729283043913,0.83975319,2643.3,2642.6,3.8119]
[1729283044111,0.06203067,2643.2,2642.7,0.92312117]
[1729283044517,0.08256863,2643.2,2642.7,0.92312117]
[1729283045655,0.08256863,2643.2,2642.8,0.8295]
[1729283046014,0.83975319,2643.3,2642.8,0.8295]
[1729283046213,0.08254823,2643.2,2642.8,0.8295]
[1729283046627,0.83975319,2643.3,2642.8,1.30476212]
[1729283046818,0.08254823,2643.2,2642.8,0.47526212]
[1729283047234,0.0521,2643.3,2642.8,0.47526212]
[1729283047420,0.08254823,2643.2,2642.8,0.47526212]
[1729283047924,0.0521,2643.3,2642.8,0.47526212]
[1729283048262,0.08254823,2643.2,2642.8,0.47526212]
[1729283048665,0.0521,2643.3,2642.8,0.47526212]
[1729283048825,0.08254823,2643.2,2642.8,0.47526212]
[1729283049353,0.08254823,2643.2,2642.6,0.7552]
[1729283049559,0.0521,2643.3,2642.6,0.7552]
[1729283049870,0.08254823,2643.2,2642.6,0.7552]
[1729283054779,0.0521,2643.3,2642.6,0.7552]
[1729283055155,0.08254823,2643.2,2642.6,0.7552]
[1729283055776,0.0521,2643.3,2642.6,0.7552]
[1729283055981,0.08254823,2643.2,2642.6,0.7552]
[1729283056335,0.0521,2643.3,2642.6,0.7552]
[1729283056537,0.08254823,2643.2,2642.6,0.7552]
[1729283056934,0.0521,2643.3,2642.6,0.7552]
[1729283057134,0.08254823,2643.2,2642.6,0.7552]
[1729283057581,0.0521,2643.3,2642.6,0.7552]
[1729283057766,0.83975319,2643.3,2642.6,0.7552]
[1729283057941,0.08254823,2643.2,2642.6,0.7552]
[1729283058457,0.83975319,2643.3,2642.6,0.7552]
[1729283058650,0.08254823,2643.2,2642.6,0.7552]
[1729283059463,0.06191117,2643.2,2642.6,0.7552]
[1729283059787,0.08254822,2643.2,2642.6,0.7552]
[1729283061086,0.83975319,2643.3,2642.6,0.7552]
[1729283061604,0.9224005,2643.3,2642.6,0.7552]
[1729283062103,0.0521,2643.2,2642.6,0.7552]
[1729283062684,0.0521,2643.1,2642.4,0.28266696]
[1729283062962,0.0521,2643.1,2642.4,0.75089174]
[1729283063156,0.0521,2643.1,2642.4,0.46822478]
[1729283063355,0.0521,2643.1,2642.4,0.75089174]
[1729283063595,0.83975319,2643.1,2642.4,0.46822478]
[1729283065301,0.83975319,2643.1,2642.4,0.75089174]
[1729283065601,0.83975319,2643.1,2642.5,0.21504726]
[1729283066313,1.57530638,2643.3,2642.6,0.8218]
[1729283066314,0.22448143,2643.3,2642.6,0.8218]
[1729283066511,0.0521,2643.6,2642.7,0.28281883]
[1729283066816,0.0521,2643.6,2642.9,0.7929]
[1729283067099,0.08283877,2643.5,2643.0,0.28280432]
[1729283067272,0.08283877,2643.5,2643.1,1.07570432]
[1729283067595,0.08269988,2643.4,2643.1,0.7929]
[1729283067800,1.23357979,2643.8,2643.5,3.0]
[1729283068004,1.51446841,2643.8,2643.5,3.0]
[1729283068304,1.51446841,2643.8,2643.1,1.07570432]
[1729283068471,1.51446841,2643.8,2643.1,0.7929]
[1729283068652,1.51446841,2643.8,2643.5,3.0]
[1729283069294,0.35172195,2643.7,2643.1,0.7929]
[1729283069457,1.51446841,2643.8,2643.5,3.0]
[1729283069960,1.51446841,2643.8,2643.1,0.7929]
[1729283070202,1.51446841,2643.8,2643.5,3.0]
[1729283070396,1.51446841,2643.8,2643.1,0.7929]
[1729283070634,1.23357979,2643.8,2643.5,3.0]
[1729283071335,1.23357979,2643.8,2643.1,0.7929]
[1729283071543,1.23357979,2643.8,2643.5,3.0]
[1729283071882,1.23357979,2643.8,2643.1,1.07574448]
[1729283072016,1.23357979,2643.8,2643.5,3.0]
[1729283072823,1.23357979,2643.8,2643.1,1.07574448]
[1729283073006,1.23357979,2643.8,2643.1,0.7929]
[1729283073205,1.23357979,2643.8,2643.1,1.07574448]
[1729283073507,1.23357979,2643.8,2643.1,0.7929]
[1729283073706,1.23357979,2643.8,2643.1,1.07574448]
[1729283073906,1.23357979,2643.8,2643.1,0.7929]
[1729283074107,1.57530638,2644.0,2643.3,0.8023]
[1729283074108,1.18147979,2643.9,2643.3,0.8023]
[1729283074410,1.23357979,2644.0,2643.4,0.20168299]
[1729283074613,0.35165554,2643.9,2643.1,0.28284448]
[1729283074810,0.40374777,2643.8,2643.1,0.8023]
[1729283075061,0.13566747,2643.8,2643.1,1.08514448]
[1729283075264,1.31714726,2643.8,2643.1,0.8023]
[1729283075558,1.31714726,2643.8,2643.1,1.08514448]
[1729283075756,1.31714726,2643.8,2643.1,0.8023]
[1729283075920,1.31714726,2643.8,2643.1,1.08514448]
[1729283076264,1.31714726,2643.8,2643.1,0.8023]
[1729283076406,0.78772415,2643.7,2643.1,0.8023]
[1729283076711,0.08328974,2643.6,2643.1,1.08511105]
[1729283076914,0.08328974,2643.6,2643.1,0.8023]
[1729283077143,0.08328974,2643.6,2643.1,1.08511436]
[1729283077462,0.08328974,2643.6,2643.1,0.8023]
[1729283077656,0.08328974,2643.6,2643.1,1.08511436]
[1729283077857,0.08328974,2643.6,2643.1,0.8023]
[1729283078012,0.08328974,2643.6,2643.1,1.08511436]
[1729283078213,0.08328974,2643.6,2643.1,0.8023]
[1729283078557,0.08328974,2643.6,2643.3,0.8147]
[1729283078740,0.08328974,2643.6,2643.4,0.28281436]
[1729283078958,0.83982415,2644.0,2643.4,0.28281436]
[1729283079264,0.07127216,2643.5,2643.4,0.28281436]
[1729283079423,0.0521,2644.0,2643.4,0.28281436]
[1729283079632,0.07127216,2643.5,2643.4,0.28281436]
[1729283080256,0.0521,2644.0,2643.4,0.28281436]
[1729283080563,0.83982415,2644.0,2643.3,0.8147]
[1729283080733,0.07174827,2643.9,2643.3,0.8147]
[1729283081145,0.07174827,2643.9,2643.3,1.09751436]
[1729283081346,0.07174827,2643.9,2643.3,0.8147]
[1729283081951,0.07174827,2643.9,2643.3,1.09751436]
[1729283082154,0.07174827,2643.9,2643.3,0.8147]
[1729283082739,0.07174827,2643.9,2643.4,0.93168542]
[1729283082979,0.83982415,2644.2,2643.5,0.7669]
[1729283083272,0.07176583,2643.8,2643.5,0.7669]
[1729283083443,0.0521,2644.2,2643.5,0.7669]
[1729283083651,0.10030553,2643.7,2643.5,0.7669]
[1729283083966,0.83982415,2644.2,2643.5,0.7669]
[1729283084175,0.0521,2644.2,2644.0,3.0]
[1729283085543,0.0521,2644.2,2643.5,0.7669]
[1729283086227,0.0521,2644.2,2644.0,3.0]
[1729283086625,0.0521,2644.2,2643.5,0.7669]
[1729283086870,0.0521,2644.2,2644.0,3.0]
[1729283087328,0.0521,2644.2,2643.5,0.7669]
[1729283090080,0.08414332,2644.1,2643.5,0.7669]
[1729283092585,0.0521,2644.4,2643.5,0.7669]
[1729283092878,0.06314768,2644.0,2643.5,0.7669]
[1729283093062,0.0521,2644.4,2643.5,0.7669]
[1729283093377,0.06346002,2644.3,2643.5,0.7669]
[1729283094379,0.0521,2644.2,2643.3,1.3036]
[1729283094585,0.10841637,2644.2,2643.3,1.3036]
[1729283108523,0.10841637,2644.2,2643.3,1.58582072]
[1729283108694,0.12443898,2644.2,2643.3,1.3036]
[1729283108896,0.12443898,2644.2,2643.3,1.58582072]
[1729283109122,0.12443898,2644.2,2643.3,1.3036]
[1729283109330,0.0521,2644.1,2643.3,1.58582072]
[1729283109483,0.0521,2644.1,2643.3,1.3036]
[1729283109681,0.07223135,2644.0,2643.3,1.58582072]
[1729283109924,0.07223135,2644.0,2643.3,1.3036]
[1729283110222,0.07223135,2644.0,2643.3,1.58582072]
[1729283110433,0.07223135,2644.0,2643.4,0.28261931]
[1729283110648,0.07223135,2644.0,2643.4,0.56524303]
[1729283111223,0.07223135,2644.0,2643.4,0.28261931]
[1729283111521,0.07223135,2644.0,2643.5,0.28262372]
[1729283111721,0.07223135,2644.0,2643.6,0.28262372]
[1729283111880,0.07223135,2644.0,2643.5,0.28262372]
[1729283112079,0.07223135,2644.0,2643.6,0.28262372]
[1729283112283,0.07223135,2644.0,2643.5,0.28262372]
[1729283112529,0.07223135,2644.0,2643.6,0.28262372]
[1729283112730,0.07223135,2644.0,2643.5,0.28262372]
[1729283112888,0.07223135,2644.0,2643.6,0.28262372]
[1729283113234,0.07223135,2644.0,2643.5,0.28262372]
[1729283113523,0.07223135,2644.0,2643.6,0.28262372]
[1729283113734,0.07223135,2644.0,2643.7,0.28262372]
[1729283114021,0.07223135,2644.0,2643.5,0.28262372]
[1729283114228,0.07223135,2644.0,2643.4,0.28261931]
[1729283114229,0.0521,2643.9,2643.6,0.28262372]
[1729283114436,0.0521,2643.9,2643.7,0.28262372]
[1729283114437,0.12421806,2643.9,2643.7,0.28262372]
[1729283114590,0.12421806,2643.9,2643.5,0.28262372]
[1729283114929,0.12421806,2643.9,2643.6,0.28262372]
[1729283115094,0.12421806,2643.9,2643.7,0.28262372]
[1729283115423,0.12421806,2643.9,2643.5,0.28262372]
[1729283115592,0.12421806,2643.9,2643.6,0.28262372]
[1729283115794,0.12421806,2643.9,2643.7,0.28262372]
[1729283115999,0.12421806,2643.9,2643.5,0.28262372]
[1729283116338,0.12421806,2643.9,2643.6,0.28262372]
[1729283116553,0.12421806,2643.9,2643.7,0.28262372]
[1729283116856,0.07211806,2643.9,2643.8,0.75187847]
[1729283116992,1.57530638,2644.6,2643.8,56.08790914]
[1729283116993,0.83982415,2644.6,2643.8,56.08790914]
[1729283117193,0.0521,2644.6,2644.1,0.8236]
[1729283117421,0.0463512,2644.5,2644.1,0.8236]
[1729283117638,0.0521,2644.9,2644.1,0.8236]
[1729283117639,0.0521,2644.9,2644.2,0.28286596]
[1729283117799,0.03672911,2644.4,2644.3,0.28286596]
[1729283118005,0.0521,2644.9,2644.3,0.28286596]
[1729283118344,0.03672911,2644.4,2644.1,0.8236]
[1729283118497,0.0521,2644.9,2644.2,0.28259224]
[1729283118698,0.0521,2644.9,2644.3,0.28259224]
[1729283118907,0.03696701,2644.8,2644.4,0.28259224]
[1729283119145,0.0521,2644.7,2644.5,0.28259224]
[1729283119346,0.0521,2644.7,2643.8,0.55]
[1729283119347,0.0521,2644.7,2644.2,0.28259224]
[1729283119558,0.03697314,2644.6,2644.0,0.28259224]
[1729283119725,0.03697314,2644.6,2644.1,0.28259224]
[1729283120054,0.03697314,2644.6,2644.2,0.28259224]
[1729283120242,0.03697314,2644.6,2643.9,0.7929]
[1729283120243,0.03697314,2644.6,2644.0,0.28259224]
[1729283120443,0.03697314,2644.6,2644.1,0.28259224]
[1729283120616,0.03697314,2644.6,2644.0,0.28259224]
[1729283120817,0.03697314,2644.6,2643.9,0.7929]
[1729283120818,0.03697314,2644.6,2644.1,0.28259224]
[1729283121033,0.03697314,2644.6,2644.0,0.28259224]
[1729283121253,0.03697314,2644.6,2644.1,0.28259224]
[1729283121451,0.03697314,2644.6,2644.0,0.28259224]
[1729283121625,0.03697314,2644.6,2644.1,0.28259224]
[1729283121830,0.03697314,2644.6,2644.0,0.46925475]
[1729283122163,0.03697314,2644.6,2644.1,0.2824651]
[1729283122317,0.03697314,2644.6,2644.2,0.2824651]
[1729283122518,0.0521,2644.7,2644.2,0.2824651]
[1729283123016,0.0521,2644.7,2644.3,0.7743]
[1729283123215,0.03463827,2644.6,2644.3,0.7743]
[1729283123420,0.0521,2644.7,2644.3,0.7743]
[1729283123721,0.03458276,2644.5,2644.3,0.7743]
[1729283123922,0.0521,2644.7,2644.3,0.7743]
[1729283124456,0.03463827,2644.6,2644.3,0.7743]
[1729283125320,0.03463827,2644.6,2644.1,1.0567651]
[1729283125630,0.0521,2644.7,2644.1,0.7743]
[1729283149543,0.0521,2644.7,2644.2,0.37743]
[1729283149966,0.0521,2644.7,2644.1,0.7743]
[1729283150167,0.03471786,2644.6,2644.1,0.7743]
[1729283150372,0.0521,2644.7,2644.1,0.7743]
[1729283151326,0.0521,2644.7,2644.0,0.2821119]
[1729283151528,0.0521,2644.7,2643.8,0.2821119]
[1729283151831,0.0521,2644.7,2643.7,0.74454257]
[1729283152081,0.03471786,2644.6,2643.7,0.74454257]
[1729283152374,0.0521,2644.5,2643.7,0.74454257]
[1729283152963,0.0521,2644.5,2643.8,0.45427426]
[1729283153272,0.0521,2644.5,2643.8,0.73638616]
[1729283153473,0.03707875,2644.4,2643.8,0.45427426]
[1729283153689,0.0521,2644.5,2643.8,0.73664014]
[1729283153893,0.03696526,2644.3,2643.8,0.73664014]
[1729283154094,0.0521,2644.5,2643.8,0.45427426]
[1729283154249,0.03690577,2644.2,2643.8,0.73664014]
[1729283154441,0.0521,2644.5,2643.8,0.45427426]
[1729283154645,0.03438986,2644.1,2643.8,0.73664014]
[1729283154871,0.0521,2644.5,2643.8,0.45427426]
[1729283155067,0.03433433,2644.0,2643.8,0.73664014]
[1729283155395,0.0521,2644.5,2643.9,0.28236588]
[1729283155799,0.0521,2644.3,2643.7,0.28236588]
[1729283156085,0.0521,2644.3,2643.8,0.28236588]
[1729283156410,0.07106482,2644.2,2643.9,0.28236588]
[1729283156699,0.0521,2644.3,2643.8,0.28236588]
[1729283156858,0.0521,2644.3,2643.9,0.28236588]
[1729283157057,0.0521,2644.3,2643.8,0.28236588]
[1729283157273,0.07106482,2644.2,2643.9,0.28236588]
[1729283157492,0.0521,2644.3,2643.7,0.40805659]
[1729283157647,0.07094583,2644.1,2644.0,0.28259328]
[1729283157847,0.0521,2644.3,2643.8,0.28259328]
[1729283158175,0.07094583,2644.1,2643.9,0.28259329]
[1729283158484,0.0521,2644.3,2644.0,0.28259329]
[1729283158796,0.0521,2644.3,2644.1,0.28259329]
[1729283159086,0.0521,2644.3,2643.8,0.28259329]
[1729283159288,1.57530638,2645.0,2643.9,5.58647871]
[1729283159289,0.0521,2644.6,2643.9,5.58647871]
[1729283159490,0.0521,2644.6,2644.0,4.14124116]
[1729283159672,0.0521,2644.6,2644.1,0.28259329]
[1729283159992,0.0521,2644.6,2644.2,0.28259329]
[1729283160288,0.0521,2644.6,2644.3,0.28259329]
[1729283160488,0.0521,2644.6,2644.4,0.28259329]
[1729283160692,0.0521,2644.6,2644.5,0.28259329]
[1729283163609,0.78772415,2644.8,2644.5,0.28259329]
[1729283163767,0.78772415,2644.8,2644.6,0.28259329]
[1729283163963,0.78772415,2644.8,2644.7,0.28308489]
[1729283164607,1.53374514,2644.8,2644.7,0.28308489]